bitfinex/quotes_ETHUSD_20250404
["timestamp","ask_amount","ask_price","bid_price","bid_amount"]
[1743747923661,11.63307,1804.6,1804.4,0.12409273]
[1743747923862,6.0914,1804.6,1804.4,0.12409273]
[1743747924186,11.63307,1804.6,1804.4,0.12409273]
[1743747924830,6.0914,1804.6,1804.4,0.12409273]
[1743747925052,11.63303,1804.6,1804.4,0.12409273]
[1743747925647,5.5417,1804.5,1804.4,0.12409273]
[1743747926768,6.0914,1804.6,1804.4,0.12409273]
[1743747928850,5.5417,1804.5,1804.4,0.12409273]
[1743747929171,6.0917,1804.5,1804.4,0.12409273]
[1743747929470,0.55,1804.5,1804.4,0.12409273]
[1743747930580,6.0917,1804.5,1804.4,0.12409273]
[1743747930784,0.55,1804.5,1804.4,0.12409273]
[1743747935985,6.0917,1804.5,1804.4,0.12409273]
[1743747939656,7.99551,1804.5,1804.4,0.12409273]
[1743747939862,9.44924572,1804.5,1804.4,0.12409273]
[1743747940189,5.54233,1804.3,1804.0,11.59042]
[1743747940486,11.08488,1804.3,1804.0,6.0473]
[1743747940657,5.54233,1804.3,1804.0,6.0473]
[1743747940863,5.54263,1804.2,1804.0,0.8193]
[1743747941186,5.54263,1804.2,1803.9,5.228]
[1743747941390,5.54263,1804.2,1803.9,6.0473]
[1743747941560,5.54263,1804.2,1803.9,11.59083]
[1743747942591,0.55,1804.2,1803.9,11.59083]
[1743747943093,6.09272,1804.2,1803.9,6.0473]
[1743747943480,6.09272,1804.2,1803.9,11.59083]
[1743747944194,6.09272,1804.2,1803.9,6.0473]
[1743747944592,5.54297,1804.1,1803.9,0.8193]
[1743747944796,5.54297,1804.1,1803.8,39.906]
[1743747946394,6.09272,1804.2,1803.9,0.8193]
[1743747946598,6.09272,1804.2,1804.0,0.11694154]
[1743747946897,0.55,1804.2,1804.0,0.11694154]
[1743747947394,0.55,1804.3,1804.0,12.40555169]
[1743747947581,0.55,1804.4,1804.1,6.36206]
[1743747947786,5.54141,1804.6,1804.3,0.8193]
[1743747947974,5.54141,1804.6,1804.4,0.11454943]
[1743747948175,11.083,1804.6,1804.4,0.11454943]
[1743747948692,5.54141,1804.6,1804.4,0.11454943]
[1743747948892,5.5417,1804.5,1804.4,0.11454943]
[1743747951563,6.0917,1804.5,1804.4,0.11454943]
[1743747951768,5.54224,1804.4,1804.1,6.0473]
[1743747952202,11.08453,1804.4,1804.2,0.11574536]
[1743747953682,6.09173,1804.5,1804.2,0.11574536]
[1743747954002,11.63362,1804.5,1804.2,0.11574536]
[1743747955307,5.54201,1804.4,1804.2,0.11574536]
[1743747956803,11.0842,1804.4,1804.2,0.11574536]
[1743747957097,5.54201,1804.4,1804.2,0.11574536]
[1743747961080,6.09172,1804.5,1804.2,0.11574536]
[1743747961810,5.54202,1804.4,1804.2,0.11574536]
[1743747962475,5.54231,1804.3,1804.2,0.11574536]
[1743747966612,7.200743,1804.3,1804.2,0.11574536]
[1743747966909,7.941243,1804.3,1804.2,0.11574536]
[1743747967299,5.54322,1804.1,1803.8,45.9575]
[1743747967481,11.08644,1804.1,1803.8,40.7295]
[1743747969225,5.54322,1804.1,1803.8,46.27331]
[1743747969524,0.55,1804.1,1803.8,46.27331]
[1743747969815,6.09294,1804.1,1803.8,46.27331]
[1743747970023,11.63611,1804.1,1803.8,40.7295]
[1743747970321,11.63606,1804.1,1803.8,40.7295]
[1743747970620,6.09294,1804.1,1803.8,0.8235]
[1743747971321,6.09294,1804.1,1803.8,6.36733]
[1743747971925,6.09294,1804.1,1803.8,0.8235]
[1743747972792,11.63611,1804.1,1803.8,0.8235]
[1743747973598,6.09294,1804.1,1803.8,0.8235]
[1743747974039,6.09294,1804.1,1803.8,6.36734]
[1743747974259,6.09294,1804.1,1803.8,0.8235]
[1743747975445,11.63607,1804.1,1803.8,0.8235]
[1743747976153,5.54324,1804.0,1803.8,0.8235]
[1743747976655,5.54324,1804.0,1803.9,0.1167963]
[1743747977956,6.09294,1804.1,1803.9,0.1167963]
[1743747978615,11.63606,1804.1,1803.9,0.1167963]
[1743747979305,6.09294,1804.1,1803.9,0.1167963]
[1743747979557,0.55,1804.1,1803.9,0.1167963]
[1743747981246,5.54236,1804.3,1803.9,0.1167963]
[1743747981446,5.54236,1804.3,1804.0,0.8104]
[1743747981646,11.08489,1804.3,1804.1,0.1158094]
[1743747981830,5.54262,1804.2,1804.1,0.1158094]
[1743747983054,5.54294,1804.1,1803.9,5.227]
[1743747983344,11.08605,1804.1,1803.9,5.227]
[1743747984024,5.54294,1804.1,1803.9,5.227]
[1743747986644,0.55,1804.1,1803.9,5.227]
[1743747986839,6.09293,1804.1,1803.9,5.227]
[1743747988456,0.55,1804.1,1803.9,5.227]
[1743747988767,0.55,1804.1,1803.9,11.5637]
[1743747989138,5.54266,1804.2,1803.9,13.274438]
[1743747989744,0.55,1804.2,1803.9,13.274378]
[1743747989950,5.54206,1804.4,1804.1,5.54282]
[1743747990842,11.08426,1804.4,1804.0,6.33643]
[1743747991042,5.54239,1804.3,1804.0,6.33643]
[1743747991244,5.54239,1804.3,1804.0,7.93492496]
[1743747991661,5.54206,1804.4,1804.1,0.11632824]
[1743747992963,11.08432,1804.4,1804.1,0.11632824]
[1743747993764,5.54235,1804.3,1804.1,0.11632824]
[1743747994263,11.08485,1804.3,1804.1,0.11632824]
[1743747994566,12.193335,1804.3,1804.1,0.11632824]
[1743747995063,6.650835,1804.3,1804.1,0.11632824]
[1743747996436,5.54235,1804.3,1804.1,0.11632824]
[1743747998857,6.09262,1804.2,1804.1,0.11632824]
[1743747999066,6.09262,1804.2,1803.9,5.227]
[1743747999225,6.09262,1804.2,1804.0,0.11659494]
[1743748001071,0.55,1804.2,1804.0,0.11659494]
[1743748001772,5.54235,1804.3,1804.0,0.11659494]
[1743748002145,5.54235,1804.3,1804.0,0.87049494]
[1743748002474,5.54262,1804.2,1804.0,0.87049494]
[1743748002676,5.54235,1804.3,1804.0,0.87049494]
[1743748002858,5.54235,1804.3,1804.0,6.41371494]
[1743748003063,5.54235,1804.3,1804.0,8.13212343]
[1743748003276,6.28197,1804.6,1804.2,5.54262]
[1743748003277,0.7405,1804.6,1804.2,5.54262]
[1743748003574,6.28136,1804.8,1804.4,5.54183]
[1743748003774,0.7405,1805.0,1804.6,0.7539]
[1743748003951,6.27977,1805.3,1804.8,6.29468]
[1743748004152,5.53927,1805.3,1804.9,11.710118]
[1743748004383,6.27919,1805.5,1805.0,0.80929906]
[1743748004539,6.27919,1805.5,1805.0,6.29394]
[1743748004745,0.55,1805.4,1805.1,0.11001583]
[1743748004963,6.27919,1805.5,1805.1,5.64977583]
[1743748005169,5.53833,1805.6,1805.1,6.6111323]
[1743748005366,6.32803,1805.9,1805.4,5.53881]
[1743748005564,6.32803,1805.9,1805.5,5.226]
[1743748005764,5.58753,1805.9,1805.5,5.33248262]
[1743748005969,11.12518,1805.9,1805.5,5.33248262]
[1743748006577,5.58753,1805.9,1805.5,6.41960488]
[1743748006779,5.58753,1805.9,1805.5,6.31312226]
[1743748006983,11.12517,1805.9,1805.5,6.31312226]
[1743748007273,5.58753,1805.9,1805.5,6.31312226]
[1743748007445,11.12518,1805.9,1805.5,6.31312226]
[1743748007781,11.12519,1805.9,1805.6,0.63128623]
[1743748008149,5.53772,1805.8,1805.6,0.63128623]
[1743748008677,5.58753,1805.9,1805.6,0.63128623]
[1743748009385,5.58753,1805.9,1805.7,0.7539]
[1743748009587,0.05,1805.9,1805.7,0.7539]
[1743748010606,0.05,1805.9,1805.7,6.29178]
[1743748010782,0.05,1805.9,1805.8,0.629178]
[1743748011885,0.05,1805.9,1805.8,6.166888]
[1743748012204,0.05,1805.9,1805.8,0.629178]
[1743748013602,0.05,1805.9,1805.8,6.166888]
[1743748015795,0.05,1805.9,1805.8,6.22225752]
[1743748016455,0.05,1805.9,1805.8,0.629178]
[1743748018688,0.05,1805.9,1805.8,6.166888]
[1743748019590,0.05,1805.9,1805.8,0.629178]
[1743748020093,0.05,1805.9,1805.8,6.166888]
[1743748020466,0.05,1805.9,1805.8,6.22225755]
[1743748020664,0.05,1805.9,1805.8,9.57092234]
[1743748021275,0.05,1805.9,1805.8,9.51555279]
[1743748024413,0.05,1805.9,1805.8,9.57091827]
[1743748024575,0.05,1805.9,1805.8,9.51555279]
[1743748028501,0.05,1805.9,1805.8,6.970288]
[1743748031309,0.05,1805.9,1805.8,11.386888]
[1743748031913,0.05,1805.9,1805.8,5.849178]
[1743748032103,0.05,1805.9,1805.8,5.22]
[1743748035176,0.05,1805.9,1805.8,10.75771]
[1743748036310,0.05,1805.9,1805.8,5.22]
[1743748037390,0.05,1805.9,1805.8,10.75771]
[1743748037589,0.05,1805.9,1805.8,5.22]
[1743748038018,0.05,1805.9,1805.8,10.75771]
[1743748038180,0.05,1805.9,1805.8,12.34853447]
[1743748044919,0.05,1805.9,1805.8,13.13453447]
[1743748045085,0.05,1805.9,1805.8,15.67979926]
[1743748047881,0.05,1805.9,1805.8,18.67979926]
[1743748049887,6.27545,1806.7,1806.3,5.53595]
[1743748050088,6.27545,1806.7,1806.4,0.553595]
[1743748050288,0.7405,1806.7,1806.4,6.089425]
[1743748050487,6.27545,1806.7,1806.4,0.553595]
[1743748052398,5.53537,1806.6,1806.4,0.553595]
[1743748055202,0.7405,1806.5,1806.3,5.219]
[1743748056511,0.7405,1806.8,1806.4,5.53558]
[1743748056707,0.7405,1806.8,1806.5,5.53542]
[1743748057330,5.58444,1806.9,1806.5,11.07082]
[1743748057631,0.05,1806.9,1806.6,5.5352]
[1743748057829,5.58435,1806.9,1806.5,5.5354]
[1743748058131,5.58435,1806.9,1806.5,12.31193156]
[1743748058433,5.58435,1806.9,1806.5,6.721124]
[1743748058606,5.58435,1806.9,1806.5,6.77647156]
[1743748059336,5.58435,1806.9,1806.5,12.31187156]
[1743748059639,5.58435,1806.9,1806.6,5.53524]
[1743748059934,5.58435,1806.9,1806.6,6.7608764]
[1743748060820,5.58435,1806.9,1806.6,1.2256364]
[1743748061139,5.58435,1806.9,1806.5,5.59074754]
[1743748061838,5.58435,1806.9,1806.5,11.12615754]
[1743748062006,5.58435,1806.9,1806.5,5.5354]
[1743748062207,0.05,1806.9,1806.7,5.53495]
[1743748062726,0.05,1806.9,1806.7,10.75295]
[1743748062907,0.05,1806.9,1806.7,12.381766]
[1743748063534,0.05,1806.9,1806.7,6.846816]
[1743748065336,0.05,1806.9,1806.7,5.218]
[1743748066307,5.58441,1806.9,1806.7,5.218]
[1743748066743,5.53464,1806.8,1806.7,5.218]
[1743748066951,5.58441,1806.9,1806.7,5.218]
[1743748068342,11.11898,1806.9,1806.7,5.218]
[1743748068548,0.7405,1806.8,1806.7,5.218]
[1743748070055,6.27514,1806.8,1806.7,5.218]
[1743748070642,5.53507,1806.7,1806.4,40.647]
[1743748070844,0.7405,1806.6,1806.4,45.078]
[1743748071928,6.27576,1806.6,1806.4,45.078]
[1743748072130,5.53556,1806.5,1806.4,39.861]
[1743748073534,5.53556,1806.5,1806.2,5.217]
[1743748073734,5.53556,1806.5,1806.2,6.292362]
[1743748073965,6.27576,1806.6,1806.2,11.828812]
[1743748075272,11.81122,1806.6,1806.2,11.828812]
[1743748075945,5.53557,1806.5,1806.2,11.828812]
[1743748076145,6.27576,1806.6,1806.2,11.828812]
[1743748076463,11.81121,1806.6,1806.2,11.828812]
[1743748076681,11.07143,1806.5,1806.2,6.292362]
[1743748076977,5.53558,1806.5,1806.2,5.217]
[1743748077261,5.53589,1806.4,1806.2,5.217]
[1743748077569,5.53558,1806.5,1806.2,5.217]
[1743748078062,5.53588,1806.4,1806.2,5.217]
[1743748078362,5.53558,1806.5,1806.2,6.292362]
[1743748078563,5.53558,1806.5,1806.2,5.217]
[1743748078765,6.27576,1806.6,1806.2,10.75334]
[1743748078967,6.27576,1806.6,1806.2,16.28965]
[1743748079169,6.27576,1806.6,1806.2,10.75331]
[1743748079347,6.27576,1806.6,1806.2,10.80866771]
[1743748079548,5.53526,1806.6,1806.3,0.7845]
[1743748080370,5.53526,1806.6,1806.3,6.32064]
[1743748081479,11.6195,1806.8,1806.3,6.37592466]
[1743748081674,11.06954,1806.8,1806.4,5.53574]
[1743748081876,11.85942,1806.9,1806.5,6.37529459]
[1743748082179,5.53467,1806.8,1806.5,0.7845]
[1743748082474,5.53467,1806.8,1806.6,5.217]
[1743748082980,5.53495,1806.7,1806.6,5.217]
[1743748085874,0.7405,1806.6,1806.3,5.536]
[1743748086282,5.53529,1806.6,1806.3,5.536]
[1743748086445,5.53495,1806.7,1806.3,5.536]
[1743748086649,11.07015,1806.7,1806.3,5.536]
[1743748086859,5.53469,1806.8,1806.5,0.7845]
[1743748087675,5.53497,1806.7,1806.4,6.08937]
[1743748087844,11.81061,1806.7,1806.3,6.33105]
[1743748088050,5.53536,1806.6,1806.3,6.33105]
[1743748093980,11.07086,1806.6,1806.2,51.69430677]
[1743748094385,5.53536,1806.6,1806.2,51.69430677]
[1743748094791,5.53536,1806.6,1806.2,57.23062677]
[1743748095086,5.53536,1806.6,1806.3,7.76448619]
[1743748095457,6.27548,1806.7,1806.3,7.76437619]
[1743748095659,6.27548,1806.7,1806.4,0.8084]
[1743748095857,6.82518,1806.8,1806.4,6.34426]
[1743748096056,6.82518,1806.8,1806.4,11.88001]
[1743748096279,12.36001,1806.8,1806.4,7.42501677]
[1743748096689,5.53497,1806.7,1806.4,7.42501677]
[1743748099386,5.53497,1806.7,1806.4,1.88926677]
[1743748099760,11.07015,1806.7,1806.4,1.88926677]
[1743748099958,11.07015,1806.7,1806.4,0.8084]
[1743748100479,5.53527,1806.6,1806.4,0.8084]
[1743748101280,11.07013,1806.7,1806.4,0.8084]
[1743748101909,11.0702,1806.7,1806.4,0.8084]
[1743748102061,5.53497,1806.7,1806.4,6.34426]
[1743748103389,5.53497,1806.7,1806.4,7.532303]
[1743748103560,11.61941,1806.8,1806.4,7.532303]
[1743748104288,5.53465,1806.8,1806.4,13.12338724]
[1743748104491,11.06948,1806.8,1806.4,7.532173]
[1743748104681,5.53465,1806.8,1806.4,13.12321422]
[1743748104985,5.53465,1806.8,1806.5,1.31232142]
[1743748105186,5.53465,1806.8,1806.4,6.3994397]
[1743748105390,5.53465,1806.8,1806.4,6.34409]
[1743748105590,11.06951,1806.8,1806.4,6.34409]
[1743748106305,5.53465,1806.8,1806.4,6.39943971]
[1743748106482,11.06953,1806.8,1806.4,6.39943971]
[1743748106788,11.06953,1806.8,1806.5,0.63994397]
[1743748108699,5.53465,1806.8,1806.5,0.63994397]
[1743748111390,5.53465,1806.8,1806.6,5.215]
[1743748111897,5.535,1806.7,1806.6,5.215]
[1743748112882,11.06948,1806.8,1806.6,5.215]
[1743748115095,5.53465,1806.8,1806.6,5.9917]
[1743748115266,11.06947,1806.8,1806.6,5.9917]
[1743748115467,5.58441,1806.9,1806.6,5.9917]
[1743748115687,5.58441,1806.9,1806.6,6.6548644]
[1743748116068,5.53467,1806.8,1806.6,6.6548644]
[1743748118504,5.58436,1806.9,1806.6,6.6548644]
[1743748118705,11.11888,1806.9,1806.6,6.6548644]
[1743748119077,11.11888,1806.9,1806.6,5.9917]
[1743748119575,5.53466,1806.8,1806.6,5.9917]
[1743748120723,0.05,1806.9,1806.6,11.52685]
[1743748122212,0.05,1806.9,1806.6,11.52684]
[1743748125110,5.58435,1806.9,1806.6,11.52684]
[1743748125312,5.58435,1806.9,1806.6,13.2970694]
[1743748126279,5.58435,1806.9,1806.6,7.7619294]
[1743748127097,5.58435,1806.9,1806.6,5.9917]
[1743748127479,0.05,1806.9,1806.6,2.28192614]
[1743748127675,0.05,1806.9,1806.7,6.66387945]
[1743748128096,0.05,1806.9,1806.7,5.214]
[1743748128297,0.05,1806.9,1806.7,5.26934241]
[1743748128499,0.05,1806.9,1806.7,6.51709219]
[1743748129610,0.05,1806.9,1806.7,12.05189219]
[1743748129788,0.05,1806.9,1806.8,0.7964]
[1743748137041,0.05,1806.9,1806.8,9.33104]
[1743748138322,0.05,1806.9,1806.8,10.78091945]
[1743748138524,0.05,1806.9,1806.8,12.14711625]
[1743748138826,0.05,1806.9,1806.8,12.12381625]
[1743748148529,0.05,1806.9,1806.8,12.39426289]
[1743748151133,0.05,1806.9,1806.8,18.28381625]
[1743748152131,0.05,1806.9,1806.8,58.12781625]
[1743748153734,0.05,1806.9,1806.8,41.2101968]
[1743748153934,0.05,1806.9,1806.8,45.056]
[1743748155812,0.05,1806.9,1806.8,39.844]
[1743748156017,0.05,1806.9,1806.8,45.055]
[1743748157140,6.32484,1806.9,1806.8,45.056]
[1743748157844,0.7905,1806.9,1806.8,45.056]
[1743748158044,0.05,1806.9,1806.8,45.056]
[1743748161753,0.05,1806.9,1806.8,47.59267476]
[1743748162344,0.05,1806.9,1806.8,53.12731476]
[1743748166857,0.05,1806.9,1806.8,56.12731476]
[1743748177564,0.05,1806.9,1806.8,48.37864]
[1743748177733,0.05,1806.9,1806.8,55.03889308]
[1743748195572,0.7405,1807.3,1806.9,5.53407]
[1743748195773,0.7405,1807.3,1806.9,11.06826]
[1743748195974,0.7405,1807.3,1806.9,5.53407]
[1743748196371,6.27362,1807.3,1806.9,5.53407]
[1743748196574,6.27362,1807.3,1807.0,0.553407]
[1743748196782,0.7405,1807.3,1807.0,6.087427]
[1743748199486,6.27363,1807.3,1807.0,0.553407]
[1743748200257,6.27363,1807.3,1806.8,48.37859]
[1743748200458,0.7405,1807.2,1806.9,5.26533724]
[1743748200646,6.27393,1807.2,1806.9,5.26533724]
[1743748200846,6.27393,1807.2,1806.9,5.26533767]
[1743748201053,5.53389,1807.1,1806.8,39.844]
[1743748201280,6.27484,1806.9,1806.8,39.844]
[1743748201471,6.27484,1806.9,1806.8,45.053]
[1743748201472,0.7405,1806.9,1806.8,45.053]
[1743748206187,6.27484,1806.9,1806.8,45.053]
[1743748206550,0.7405,1806.9,1806.8,45.053]
[1743748207070,11.06836,1807.0,1806.8,45.053]
[1743748207271,5.53406,1807.0,1806.8,45.053]
[1743748208090,5.53434,1806.9,1806.8,45.053]
[1743748208589,5.53406,1807.0,1806.8,45.053]
[1743748209180,6.27484,1806.9,1806.8,45.053]
[1743748209860,6.27484,1806.9,1806.8,39.844]
[1743748210073,10.00839908,1806.9,1806.8,39.844]
[1743748210383,10.00839908,1806.9,1806.4,5.21]
[1743748210384,1.2905,1806.7,1806.4,5.21]
[1743748210584,6.27665,1806.4,1806.3,5.21]
[1743748210785,5.53634,1806.3,1806.1,39.848]
[1743748210990,5.53634,1806.3,1806.2,5.21]
[1743748211781,6.27698,1806.2,1806.1,39.848]
[1743748213291,6.82698,1806.2,1806.1,39.848]
[1743748214188,6.27698,1806.2,1806.1,39.848]
[1743748214704,5.53626,1806.3,1806.1,39.848]
[1743748215208,5.5359,1806.4,1806.1,40.6445]
[1743748215362,0.7405,1806.6,1806.2,8.07568567]
[1743748215570,5.53437,1806.9,1806.5,0.7965]
[1743748215766,6.27455,1807.0,1806.6,5.26534676]
[1743748216070,6.27394,1807.2,1806.7,0.7965]
[1743748216266,5.53311,1807.3,1806.8,8.12908339]
[1743748216462,5.53311,1807.3,1807.0,0.7965]
[1743748216663,5.53311,1807.3,1807.1,5.211]
[1743748216983,5.53342,1807.2,1807.1,5.211]
[1743748217180,5.5343,1807.0,1806.8,5.21]
[1743748217375,11.06862,1807.0,1806.8,5.21]
[1743748217780,5.53434,1806.9,1806.8,5.21]
[1743748218093,6.27484,1806.9,1806.8,5.21]
[1743748219390,7.455754,1806.9,1806.8,5.21]
[1743748220266,5.53434,1806.9,1806.8,5.21]
[1743748220567,11.06862,1807.0,1806.8,5.21]
[1743748220766,5.53434,1806.9,1806.8,5.21]
[1743748221389,5.5343,1807.0,1806.8,5.21]
[1743748221390,5.53407,1807.0,1806.8,5.21]
[1743748223369,11.06831,1807.0,1806.8,5.21]
[1743748223696,11.06893,1806.9,1806.6,0.8088]
[1743748223895,5.53434,1806.9,1806.7,5.26534484]
[1743748224097,5.53434,1806.9,1806.7,5.21]
[1743748224392,6.27606,1806.5,1806.4,39.855]
[1743748225697,5.53694,1806.1,1805.8,6.16]
[1743748225900,5.53694,1806.1,1805.9,5.21]
[1743748229369,11.07393,1806.1,1805.9,5.21]
[1743748229570,11.81443,1806.1,1805.9,5.21]
[1743748230211,5.53709,1806.0,1805.9,5.21]
[1743748230419,0.7405,1806.1,1805.8,0.05537078]
[1743748230722,5.53737,1806.0,1805.9,5.21]
[1743748230949,5.53771,1805.8,1805.7,39.852]
[1743748233226,5.53955,1805.2,1805.1,0.05]
[1743748233628,6.08955,1805.2,1805.1,0.05]
[1743748233819,6.83005,1805.2,1805.1,0.05]
[1743748236903,6.83005,1805.2,1805.1,0.15580921]
[1743748237113,8.32091357,1805.2,1805.1,0.15580921]
[1743748240207,5.54215,1804.4,1804.1,0.05]
[1743748240406,5.54242,1804.3,1804.1,0.05]
[1743748242714,5.54242,1804.3,1804.1,5.291]
[1743748243010,5.54242,1804.3,1804.1,0.05]
[1743748243216,5.54262,1804.2,1804.1,0.05]
[1743748243411,5.54242,1804.3,1804.1,0.05]
[1743748244006,5.54242,1804.3,1804.1,0.8497]
[1743748244407,5.5421,1804.4,1804.1,0.8497]
[1743748245138,11.08432,1804.4,1804.1,0.8497]
[1743748245333,5.5421,1804.4,1804.1,0.8497]
[1743748245834,5.5421,1804.4,1804.2,5.243]
[1743748246662,5.54143,1804.6,1804.2,5.243]
[1743748246933,5.54078,1804.8,1804.4,5.54196]
[1743748247116,5.54078,1804.8,1804.6,0.7997]
[1743748247316,5.54078,1804.8,1804.6,6.0467]
[1743748247539,5.5405,1804.9,1804.6,6.0467]
[1743748248312,11.08117,1804.9,1804.6,6.0467]
[1743748248514,5.54086,1804.8,1804.6,6.0467]
[1743748249163,5.5399,1805.1,1804.6,6.0467]
[1743748249323,5.5403,1805.0,1804.6,11.58798]
[1743748249534,5.5399,1805.1,1804.6,11.58798]
[1743748249840,5.54016,1805.0,1804.6,11.58798]
[1743748250139,5.54016,1805.0,1804.6,14.28794296]
[1743748250312,5.5399,1805.1,1804.7,5.54104]
[1743748250513,11.07935,1805.2,1804.8,0.7997]
[1743748250717,5.53988,1805.1,1804.8,0.7997]
[1743748251714,5.54019,1805.0,1804.8,0.7997]
[1743748252243,5.53988,1805.1,1804.8,0.7997]
[1743748253051,11.07995,1805.1,1804.8,0.7997]
[1743748253218,5.53988,1805.1,1804.8,0.7997]
[1743748253540,5.54028,1805.0,1804.8,0.7997]
[1743748253730,5.53996,1805.1,1804.8,0.7997]
[1743748254040,5.54032,1805.0,1804.8,0.7997]
[1743748254243,5.54032,1805.0,1804.6,8.71876296]
[1743748255348,5.54051,1804.9,1804.6,6.0188]
[1743748255714,5.54032,1805.0,1804.6,6.0188]
[1743748256126,5.54051,1804.9,1804.6,6.0188]
[1743748256326,5.54032,1805.0,1804.6,6.0188]
[1743748256715,5.54032,1805.0,1804.6,11.56015]
[1743748257344,5.54032,1805.0,1804.6,6.0188]
[1743748257648,11.08067,1805.0,1804.6,6.0188]
[1743748258147,5.54032,1805.0,1804.6,6.0188]
[1743748258342,6.647865,1805.1,1804.6,14.86932296]
[1743748258541,6.647865,1805.1,1804.6,17.10137]
[1743748259046,12.187915,1805.1,1804.6,11.56008]
[1743748259255,12.187905,1805.1,1804.6,11.56001]
[1743748259435,11.07995,1805.1,1804.6,11.56001]
[1743748259613,5.5402,1805.0,1804.6,6.0188]
[1743748260235,5.54053,1804.9,1804.6,6.0188]
[1743748260619,5.54094,1804.8,1804.7,5.24]
[1743748261922,5.54108,1804.7,1804.6,0.7718]
[1743748262115,5.54108,1804.7,1804.5,39.896]
[1743748262320,5.54139,1804.6,1804.5,39.896]
[1743748262521,5.54139,1804.6,1804.5,45.135]
[1743748262716,5.54139,1804.6,1804.5,39.896]
[1743748272357,5.5417,1804.5,1804.4,5.244]
[1743748276365,6.2822,1804.5,1804.4,5.244]
[1743748276536,7.464559,1804.5,1804.4,5.244]
[1743748277267,6.724059,1804.5,1804.4,5.244]
[1743748279370,5.5417,1804.5,1804.4,5.244]
[1743748283746,6.2822,1804.5,1804.4,5.244]
[1743748283976,5.54262,1804.2,1804.1,5.278]
[1743748288143,5.54262,1804.2,1804.1,6.09]
[1743748294458,5.54211,1804.4,1804.1,6.1454241]
[1743748295604,0.55,1804.8,1804.3,0.812]
[1743748295765,0.55,1804.8,1804.5,0.812]
[1743748295766,5.54078,1804.8,1804.5,0.812]
[1743748295972,5.54078,1804.8,1804.6,5.224]
[1743748296303,11.08178,1804.8,1804.6,5.224]
[1743748296457,5.54078,1804.8,1804.6,5.224]
[1743748296842,11.08175,1804.8,1804.6,5.224]
[1743748297585,5.54051,1804.9,1804.6,5.224]
[1743748297873,5.54016,1805.0,1804.7,0.812]
[1743748298284,5.53983,1805.2,1804.7,0.812]
[1743748298448,6.2794,1805.5,1804.9,0.7871]
[1743748298653,5.5389,1805.5,1805.1,0.7871]
[1743748298852,0.7405,1805.7,1805.1,0.7871]
[1743748298853,5.53833,1805.6,1805.2,8.134133]
[1743748299049,5.53833,1805.6,1805.3,0.7871]
[1743748299280,5.53833,1805.6,1805.4,5.242]
[1743748300385,5.53863,1805.5,1805.4,5.242]
[1743748300882,6.646326,1805.5,1805.4,5.242]
[1743748302052,5.53973,1805.2,1805.0,39.906]
[1743748302253,5.53973,1805.2,1805.1,5.243]
[1743748305586,0.7405,1805.7,1805.1,6.0301]
[1743748305754,5.53802,1805.7,1805.4,0.7871]
[1743748305971,5.53802,1805.7,1805.5,5.25]
[1743748306173,5.53773,1805.8,1805.5,5.25]
[1743748307885,5.53832,1805.6,1805.5,5.25]
[1743748308303,5.53811,1805.7,1805.5,5.25]
[1743748309180,5.53774,1805.8,1805.6,0.525]
[1743748309792,5.53774,1805.8,1805.5,5.25]
[1743748310017,11.07568,1805.8,1805.5,5.25]
[1743748310315,5.53803,1805.7,1805.5,5.25]
[1743748312908,5.53832,1805.6,1805.5,5.25]
[1743748313781,5.53803,1805.7,1805.5,5.25]
[1743748314112,5.53714,1806.0,1805.6,0.8128807]
[1743748314314,6.2771,1806.2,1805.7,5.5379]
[1743748314615,5.53692,1806.1,1805.6,46.18272]
[1743748314919,5.53692,1806.1,1805.7,2.53922567]
[1743748315210,5.53619,1806.3,1805.8,6.35045785]
[1743748315408,5.53619,1806.3,1805.9,8.43327145]
[1743748315602,11.07327,1806.2,1805.9,5.89404578]
[1743748316210,5.53649,1806.2,1806.0,0.05536495]
[1743748316513,5.53627,1806.3,1806.0,0.05536495]
[1743748316807,5.53602,1806.4,1806.0,6.29457]
[1743748317009,5.53517,1806.7,1806.2,5.53648]
[1743748317233,5.53538,1806.6,1806.3,5.256]
[1743748317605,5.53538,1806.6,1806.4,0.7575]
[1743748317912,11.07005,1806.7,1806.4,0.7575]
[1743748318479,5.53497,1806.7,1806.4,0.7575]
[1743748318683,11.07014,1806.7,1806.4,1.35885]
[1743748319388,5.53526,1806.6,1806.4,1.35885]
[1743748320132,5.53556,1806.5,1806.1,0.629457]
[1743748320290,5.53556,1806.5,1806.3,5.256]
[1743748321338,5.53587,1806.4,1806.3,5.256]
[1743748322022,11.07133,1806.5,1806.3,5.256]
[1743748322419,5.53515,1806.7,1806.3,5.256]
[1743748322591,5.53536,1806.6,1806.3,7.14809274]
[1743748322790,11.07039,1806.7,1806.3,7.14809127]
[1743748322996,5.53539,1806.6,1806.3,7.092738]
[1743748323203,11.0709,1806.6,1806.3,7.092738]
[1743748323404,5.53559,1806.5,1806.3,7.092738]
[1743748323606,5.53539,1806.6,1806.4,0.7092738]
[1743748324121,5.53505,1806.7,1806.4,0.7092738]
[1743748324337,5.53469,1806.8,1806.5,39.87]
[1743748324889,5.53525,1806.6,1806.5,39.87]